[Event "Mitropa Online Cup Women 2021"]
[Site "Hybrid"]
[Date "2021.05.04"]
[Round "5.3"]
[White "Guichard, Pauline"]
[Black "Hakimifard, Ghazal"]
[Result "1-0"]
[ECO "E18"]
[WhiteElo "2415"]
[BlackElo "2265"]
[Annotator "NA"]
[PlyCount "91"]
[EventDate "2021.05.04"]
[EventType "team-tourn"]
[EventCountry "NET"]
[SourceTitle "playchess.com"]
[Source "ChessBase"]
[SourceQuality "1"]
[WhiteTeam "France"]
[BlackTeam "Switzerland"]
[WhiteTeamCountry "FRA"]
[BlackTeamCountry "SUI"]
[TimeControl "40/5400+30:1800+30"]

1. d4 {[%emt 0:00:00]} Nf6 {[%emt 0:00:06]} 2. c4 {[%emt 0:00:08]} e6 {[%emt 0:00:06]} 3. Nf3 {[%emt 0:00:09]} b6 {[%emt 0:00:10]} 4. g3 {[%emt 0:00:11]} Bb7 {[%emt 0:00:19]} 5. Bg2 {[%emt 0:00:08]} Be7 {[%emt 0:00:06]} 6. O-O {[%emt 0:00:17]} O-O {[%emt 0:00:07]} 7. Nc3 {[%emt 0:00:11]} Ne4 {[%emt 0:00:13]} 8. Bd2 {[%emt 0:00:10]} f5 {[%emt 0:02:35]} 9. Ne5 {[%emt 0:00:25]} c5 {[%emt 0:04:06]} 10. d5 {[%emt 0:14:52]} Bf6 {[%emt 0:01:18]} 11. Nd3 {[%emt 0:12:59]} Bxc3 {[%emt 0:09:28]} 12. Bxc3 {[%emt 0:00:59]} Nxc3 {[%emt 0:02:01]} 13. bxc3 {[%emt 0:00:09]} Qf6 {[%emt 0:01:51]} 14. Qb3 {[%emt 0:05:50]} Na6 {[%emt 0:02:21]} 15. a4 {[%emt 0:07:13]} e5 {[%emt 0:05:13]} 16. a5 {[%emt 0:03:30]} e4 {[%emt 0:06:38]} 17. Nb2 {[%emt 0:01:10]} Qh6 {[%emt 0:12:41]} 18. axb6 {[%emt 0:11:17]} axb6 {[%emt 0:00:05]} 19. f4 {[%emt 0:06:04]} Nc7 {[%emt 0:09:30]} 20. Na4 {[%emt 0:04:25]} b5 {[%emt 0:02:35]} 21. cxb5 {[%emt 0:02:03]} Bxd5 {[%emt 0:00:58]} 22. c4 {[%emt 0:00:52]} Bb7 {[%emt 0:02:09]} 23. e3 {[%emt 0:04:01]} Qf6 {[%emt 0:08:08]} 24. Rad1 {[%emt 0:05:18]} d6 {[%emt 0:02:05]} 25. Nb6 {[%emt 0:01:33]} Rad8 {[%emt 0:00:07]} 26. Rf2 {[%emt 0:01:16]} Na8 {[%emt 0:02:06]} 27. Na4 {[%emt 0:01:12]} Qe7 {[%emt 0:06:04]} 28. Rfd2 {[%emt 0:00:11]} Qc7 {[%emt 0:00:59]} 29. Qc3 {[%emt 0:05:42]} Rf7 {[%emt 0:03:28]} 30. Bh3 {[%emt 0:00:08]} Nb6 {[%emt 0:00:42]} 31. Nxb6 {[%emt 0:00:27]} Qxb6 {[%emt 0:00:04]} 32. g4 {[%emt 0:00:07]} Bc8 {[%emt 0:06:13]} 33. gxf5 {[%emt 0:00:08]} Bxf5 {[%emt 0:00:13]} 34. Bxf5 {[%emt 0:00:17]} Rxf5 {[%emt 0:00:05]} 35. Qc2 {[%emt 0:00:20]} Qb7 {[%emt 0:03:11]} 36. Rxd6 {[%emt 0:00:20]} Rxd6 {[%emt 0:00:21]} 37. Rxd6 {[%emt 0:00:10]} Qe7 {[%emt 0:00:04]} 38. Qd1 {[%emt 0:04:54]} h6 {[%emt 0:01:36]} 39. b6 {[%emt 0:05:05]} Kh7 {[%emt 0:00:07]} 40. Rd7 {[%emt 0:00:00]} Qh4 {[%emt 0:00:00]} 41. b7 {[%emt 0:12:05]} Rf8 {[%emt 0:01:27]} 42. Kg2 {[%emt 0:00:43]} h5 {[%emt 0:07:31]} 43. Rd5 {[%emt 0:01:41]} g6 {[%emt 0:07:01]} 44. Rg5 {[%emt 0:02:09]} Rg8 {[%emt 0:05:05]} 45. Qd5 {[%emt 0:03:51]} Qe1 {[%emt 0:01:03]} 46. Qxg8+ {[%emt 0:00:39]} 1-0

[Event "Mitropa Online Cup Women 2021"]
[Site "Hybrid"]
[Date "2021.05.04"]
[Round "5.3"]
[White "Mueller-Seps, Monika"]
[Black "Navrotescu, Andreea-Cristiana"]
[Result "0-1"]
[ECO "A48"]
[WhiteElo "2243"]
[BlackElo "2247"]
[Annotator "NA"]
[PlyCount "80"]
[EventDate "2021.05.04"]
[EventType "team-tourn"]
[EventCountry "NET"]
[SourceTitle "playchess.com"]
[Source "ChessBase"]
[SourceQuality "1"]
[WhiteTeam "Switzerland"]
[BlackTeam "France"]
[WhiteTeamCountry "SUI"]
[BlackTeamCountry "FRA"]
[TimeControl "40/5400+30:1800+30"]

1. d4 {[%emt 0:00:00]} Nf6 {[%emt 0:00:08]} 2. Nf3 {[%emt 0:00:32]} g6 {[%emt 0:00:07]} 3. Bg5 {[%emt 0:00:23]} Bg7 {[%emt 0:00:10]} 4. Nbd2 {[%emt 0:00:10]} O-O {[%emt 0:00:25]} 5. c3 {[%emt 0:00:07]} d6 {[%emt 0:01:00]} 6. e4 {[%emt 0:00:18]} c5 {[%emt 0:00:43]} 7. d5 {[%emt 0:02:56]} h6 {[%emt 0:00:47]} 8. Bxf6 {[%emt 0:01:25]} Bxf6 {[%emt 0:04:51]} 9. Bc4 {[%emt 0:00:45]} Na6 {[%emt 0:02:52]} 10. O-O {[%emt 0:13:17]} Nc7 {[%emt 0:00:15]} 11. a4 {[%emt 0:00:07]} Bg7 {[%emt 0:14:55]} 12. Qe2 {[%emt 0:18:34]} Rb8 {[%emt 0:16:06]} 13. Rfe1 {[%emt 0:11:47]} b6 {[%emt 0:03:13]} 14. Nf1 {[%emt 0:15:32]} a6 {[%emt 0:02:52]} 15. Ne3 {[%emt 0:06:35]} b5 {[%emt 0:00:30]} 16. Bd3 {[%emt 0:02:47]} e5 {[%emt 0:27:38]} 17. g4 {[%emt 0:02:03]} c4 {[%emt 0:03:06]} 18. Bc2 {[%emt 0:00:18]} Kh8 {[%emt 0:02:43]} 19. Kh1 {[%emt 0:01:09]} b4 {[%emt 0:06:11]} 20. Qxc4 {[%emt 0:01:32]} a5 {[%emt 0:00:13]} 21. Qe2 {[%emt 0:02:30]} Na6 {[%emt 0:00:43]} 22. Bd3 {[%emt 0:05:50]} Nc5 {[%emt 0:00:24]} 23. Nd2 {[%emt 0:00:13]} f5 {[%emt 0:10:01]} 24. gxf5 {[%emt 0:02:10]} gxf5 {[%emt 0:00:05]} 25. Nxf5 {[%emt 0:03:14]} Nxe4 {[%emt 0:01:38]} 26. Bxe4 {[%emt 0:00:56]} Bxf5 {[%emt 0:00:09]} 27. c4 {[%emt 0:04:00]} Bd7 {[%emt 0:00:58]} 28. Qh5 {[%emt 0:03:32]} Be8 {[%emt 0:00:08]} 29. Qe2 {[%emt 0:00:25]} Rf4 {[%emt 0:00:46]} 30. Rg1 {[%emt 0:00:24]} Qf6 {[%emt 0:00:22]} 31. f3 {[%emt 0:00:17]} Bh5 {[%emt 0:00:30]} 32. Rg3 {[%emt 0:00:07]} Rg8 {[%emt 0:00:53]} 33. Rag1 {[%emt 0:00:03]} Bf7 {[%emt 0:00:28]} 34. Bb1 {[%emt 0:00:31]} h5 {[%emt 0:00:24]} 35. Qd3 {[%emt 0:00:45]} Qh6 {[%emt 0:00:28]} 36. Ne4 {[%emt 0:00:11]} Bf8 {[%emt 0:00:28]} 37. Ng5 {[%emt 0:01:20]} Bg6 {[%emt 0:00:36]} 38. Qd1 {[%emt 0:00:43]} h4 {[%emt 0:00:21]} 39. R3g2 {[%emt 0:00:46]} Bh5 {[%emt 0:00:27]} 40. Be4 {[%emt 0:00:00]} Be7 {[%emt 0:00:00]} 0-1

[Event "Mitropa Online Cup Women 2021"]
[Site "Hybrid"]
[Date "2021.05.04"]
[Round "5.3"]
[White "Monpeurt, Cyrielle"]
[Black "Heinatz, Gundula"]
[Result "0-1"]
[ECO "B18"]
[WhiteElo "2166"]
[BlackElo "2131"]
[Annotator "NA"]
[PlyCount "68"]
[EventDate "2021.05.04"]
[EventType "team-tourn"]
[EventCountry "NET"]
[SourceTitle "playchess.com"]
[Source "ChessBase"]
[SourceQuality "1"]
[WhiteTeam "France"]
[BlackTeam "Switzerland"]
[WhiteTeamCountry "FRA"]
[BlackTeamCountry "SUI"]
[TimeControl "40/5400+30:1800+30"]

1. e4 {[%emt 0:00:00]} c6 {[%emt 0:00:06]} 2. d4 {[%emt 0:01:33]} d5 {[%emt 0:00:10]} 3. Nc3 {[%emt 0:02:21]} dxe4 {[%emt 0:00:13]} 4. Nxe4 {[%emt 0:00:12]} Bf5 {[%emt 0:00:06]} 5. Ng3 {[%emt 0:00:12]} Bg6 {[%emt 0:00:08]} 6. h4 {[%emt 0:01:14]} h6 {[%emt 0:00:10]} 7. Nh3 {[%emt 0:00:52]} Nf6 {[%emt 0:01:38]} 8. Nf4 {[%emt 0:00:14]} Bh7 {[%emt 0:00:20]} 9. Bc4 {[%emt 0:00:13]} e6 {[%emt 0:04:41]} 10. O-O {[%emt 0:00:17]} Nd5 {[%emt 0:05:44]} 11. Bxd5 {[%emt 0:07:13]} cxd5 {[%emt 0:00:28]} 12. Re1 {[%emt 0:00:11]} Nc6 {[%emt 0:05:31]} 13. Qg4 {[%emt 0:31:50]} Qd7 {[%emt 0:10:35]} 14. c3 {[%emt 0:03:25]} O-O-O {[%emt 0:04:36]} 15. h5 {[%emt 0:07:53]} Rg8 {[%emt 0:08:54]} 16. Qd1 {[%emt 0:08:14]} Bd6 {[%emt 0:02:10]} 17. b4 {[%emt 0:03:44]} Qc7 {[%emt 0:04:32]} 18. Nge2 {[%emt 0:00:15]} Rde8 {[%emt 0:11:42]} 19. Be3 {[%emt 0:08:59]} g6 {[%emt 0:02:10]} 20. g3 {[%emt 0:07:44]} g5 {[%emt 0:06:18]} 21. Nd3 {[%emt 0:01:26]} Be4 {[%emt 0:04:06]} 22. c4 {[%emt 0:06:32]} dxc4 {[%emt 0:02:45]} 23. Nc5 {[%emt 0:00:10]} Bf3 {[%emt 0:05:05]} 24. Qc2 {[%emt 0:00:19]} f5 {[%emt 0:03:24]} 25. b5 {[%emt 0:01:33]} Nb4 {[%emt 0:10:20]} 26. Qxc4 {[%emt 0:00:19]} Nd5 {[%emt 0:00:24]} 27. Rac1 {[%emt 0:01:41]} Kb8 {[%emt 0:00:40]} 28. Qb3 {[%emt 0:01:36]} Qf7 {[%emt 0:00:24]} 29. Bxg5 {[%emt 0:03:02]} Qxh5 {[%emt 0:01:01]} 30. Bh4 {[%emt 0:00:12]} Bxe2 {[%emt 0:00:40]} 31. Nxe6 {[%emt 0:01:29]} Bf3 {[%emt 0:01:21]} 32. Qd3 {[%emt 0:00:35]} Bxg3 {[%emt 0:02:09]} 33. fxg3 {[%emt 0:00:28]} Rxg3+ {[%emt 0:00:23]} 34. Kf1 {[%emt 0:00:30]} Qxh4 {[%emt 0:00:15]} 0-1

[Event "Mitropa Online Cup Women 2021"]
[Site "Hybrid"]
[Date "2021.05.04"]
[Round "5.3"]
[White "Thode, Gilda"]
[Black "Thomas, Anysia"]
[Result "0-1"]
[ECO "A48"]
[WhiteElo "1987"]
[BlackElo "2164"]
[Annotator "NA"]
[PlyCount "106"]
[EventDate "2021.05.04"]
[EventType "team-tourn"]
[EventCountry "NET"]
[SourceTitle "playchess.com"]
[Source "ChessBase"]
[SourceQuality "1"]
[WhiteTeam "Switzerland"]
[BlackTeam "France"]
[WhiteTeamCountry "SUI"]
[BlackTeamCountry "FRA"]
[TimeControl "40/5400+30:1800+30"]

1. d4 {[%emt 0:00:00]} Nf6 {[%emt 0:00:12]} 2. Nf3 {[%emt 0:00:17]} g6 {[%emt 0:00:13]} 3. Bg5 {[%emt 0:00:17]} Bg7 {[%emt 0:00:13]} 4. Nbd2 {[%emt 0:00:15]} O-O {[%emt 0:00:31]} 5. e3 {[%emt 0:02:28]} d6 {[%emt 0:00:51]} 6. c3 {[%emt 0:01:34]} b6 {[%emt 0:01:42]} 7. Be2 {[%emt 0:07:15]} Bb7 {[%emt 0:00:40]} 8. O-O {[%emt 0:05:17]} c5 {[%emt 0:03:10]} 9. b4 {[%emt 0:13:12]} Nbd7 {[%emt 0:14:31]} 10. a4 {[%emt 0:19:25]} h6 {[%emt 0:12:49]} 11. Bxf6 {[%emt 0:10:57]} Nxf6 {[%emt 0:03:22]} 12. a5 {[%emt 0:12:13]} Rc8 {[%emt 0:14:39]} 13. axb6 {[%emt 0:14:40]} axb6 {[%emt 0:00:24]} 14. Ra7 {[%emt 0:02:38]} Rc7 {[%emt 0:02:26]} 15. Qa4 {[%emt 0:04:17]} Nd5 {[%emt 0:14:16]} 16. Qa3 {[%emt 0:02:04]} Nxc3 {[%emt 0:07:18]} 17. Bc4 {[%emt 0:01:08]} cxd4 {[%emt 0:06:44]} 18. exd4 {[%emt 0:00:27]} Bxf3 {[%emt 0:00:54]} 19. Rxc7 {[%emt 0:00:33]} Qxc7 {[%emt 0:00:30]} 20. Qxc3 {[%emt 0:00:30]} Bd5 {[%emt 0:00:28]} 21. Qd3 {[%emt 0:00:30]} Bxc4 {[%emt 0:01:47]} 22. Nxc4 {[%emt 0:00:07]} Rc8 {[%emt 0:00:35]} 23. Ne3 {[%emt 0:00:51]} Qc6 {[%emt 0:06:27]} 24. Re1 {[%emt 0:00:33]} e6 {[%emt 0:00:36]} 25. d5 {[%emt 0:00:26]} Qc3 {[%emt 0:00:52]} 26. Qxc3 {[%emt 0:00:31]} Rxc3 {[%emt 0:00:28]} 27. Rb1 {[%emt 0:00:32]} Bd4 {[%emt 0:02:29]} 28. Nd1 {[%emt 0:00:27]} Rc2 {[%emt 0:00:12]} 29. dxe6 {[%emt 0:00:31]} fxe6 {[%emt 0:00:05]} 30. Kf1 {[%emt 0:00:32]} e5 {[%emt 0:02:29]} 31. Rb3 {[%emt 0:00:29]} Kg7 {[%emt 0:00:31]} 32. g3 {[%emt 0:00:31]} g5 {[%emt 0:00:55]} 33. h3 {[%emt 0:00:29]} e4 {[%emt 0:00:34]} 34. f3 {[%emt 0:00:32]} d5 {[%emt 0:00:34]} 35. Ne3 {[%emt 0:00:31]} Bxe3 {[%emt 0:00:36]} 36. Rxe3 {[%emt 0:00:06]} Rc4 {[%emt 0:00:20]} 37. fxe4 {[%emt 0:00:41]} dxe4 {[%emt 0:00:07]} 38. Rb3 {[%emt 0:00:36]} Kf6 {[%emt 0:00:06]} 39. Kf2 {[%emt 0:00:31]} Ke5 {[%emt 0:00:11]} 40. Ke3 {[%emt 0:00:00]} h5 {[%emt 0:00:00]} 41. b5 {[%emt 0:12:41]} Ra4 {[%emt 0:02:45]} 42. Rc3 {[%emt 0:10:27]} Rb4 {[%emt 0:01:16]} 43. Rc8 {[%emt 0:00:25]} Rb3+ {[%emt 0:00:11]} 44. Kf2 {[%emt 0:00:16]} Rxb5 {[%emt 0:00:57]} 45. Rh8 {[%emt 0:04:42]} Kd4 {[%emt 0:09:35]} 46. Rxh5 {[%emt 0:01:24]} e3+ {[%emt 0:00:59]} 47. Ke2 {[%emt 0:03:48]} Rb2+ {[%emt 0:00:14]} 48. Kf1 {[%emt 0:00:12]} Rb5 {[%emt 0:04:56]} 49. Ke2 {[%emt 0:01:05]} Rb2+ {[%emt 0:02:08]} 50. Kf1 {[%emt 0:00:14]} Kd3 {[%emt 0:00:06]} 51. Rh8 {[%emt 0:00:47]} Rb1+ {[%emt 0:00:12]} 52. Kg2 {[%emt 0:00:11]} e2 {[%emt 0:00:09]} 53. Rd8+ {[%emt 0:00:18]} Kc4 {[%emt 0:00:11]} 0-1

[Event "Mitropa Online Cup Women 2021"]
[Site "Hybrid"]
[Date "2021.05.04"]
[Round "5.4"]
[White "Worek, Joanna"]
[Black "Froewis, Annika"]
[Result "1-0"]
[ECO "C41"]
[WhiteElo "2322"]
[BlackElo "2143"]
[Annotator "NA"]
[PlyCount "121"]
[EventDate "2021.05.04"]
[EventType "team-tourn"]
[EventCountry "NET"]
[SourceTitle "playchess.com"]
[Source "ChessBase"]
[SourceQuality "1"]
[WhiteTeam "Czech Republic"]
[BlackTeam "Austria"]
[WhiteTeamCountry "CZE"]
[BlackTeamCountry "AUT"]
[TimeControl "40/5400+30:1800+30"]

1. e4 {[%emt 0:00:00]} e5 {[%emt 0:00:07]} 2. Nf3 {[%emt 0:00:08]} d6 {[%emt 0:00:02]} 3. d4 {[%emt 0:00:06]} exd4 {[%emt 0:00:02]} 4. Nxd4 {[%emt 0:00:05]} Nf6 {[%emt 0:00:02]} 5. Nc3 {[%emt 0:00:06]} Be7 {[%emt 0:00:02]} 6. Bd3 {[%emt 0:05:19]} O-O {[%emt 0:01:12]} 7. O-O {[%emt 0:01:59]} Re8 {[%emt 0:00:47]} 8. b3 {[%emt 0:01:49]} c6 {[%emt 0:05:02]} 9. h3 {[%emt 0:05:38]} Bf8 {[%emt 0:00:41]} 10. Re1 {[%emt 0:13:13]} Nbd7 {[%emt 0:00:55]} 11. Bb2 {[%emt 0:04:57]} g6 {[%emt 0:09:41]} 12. Qd2 {[%emt 0:00:17]} Bg7 {[%emt 0:08:36]} 13. Bf1 {[%emt 0:03:47]} Nc5 {[%emt 0:10:49]} 14. f3 {[%emt 0:07:01]} Nh5 {[%emt 0:09:16]} 15. Nde2 {[%emt 0:06:16]} Be5 {[%emt 0:08:09]} 16. Nd1 {[%emt 0:01:28]} Qf6 {[%emt 0:07:51]} 17. Bxe5 {[%emt 0:00:32]} dxe5 {[%emt 0:00:58]} 18. Nf2 {[%emt 0:00:33]} a5 {[%emt 0:07:28]} 19. Rad1 {[%emt 0:02:21]} b6 {[%emt 0:03:54]} 20. Qd6 {[%emt 0:08:21]} Qxd6 {[%emt 0:05:15]} 21. Rxd6 {[%emt 0:00:14]} Bb7 {[%emt 0:00:05]} 22. Red1 {[%emt 0:00:16]} Rac8 {[%emt 0:02:33]} 23. Ng4 {[%emt 0:06:08]} Rc7 {[%emt 0:03:31]} 24. a3 {[%emt 0:08:31]} Bc8 {[%emt 0:01:30]} 25. Ne3 {[%emt 0:00:45]} Nb7 {[%emt 0:01:48]} 26. R6d2 {[%emt 0:00:29]} Be6 {[%emt 0:02:20]} 27. Nc3 {[%emt 0:07:19]} Nf4 {[%emt 0:03:05]} 28. Kf2 {[%emt 0:02:22]} Kf8 {[%emt 0:01:01]} 29. a4 {[%emt 0:02:49]} Nc5 {[%emt 0:03:20]} 30. Bc4 {[%emt 0:00:36]} Rb8 {[%emt 0:02:59]} 31. h4 {[%emt 0:01:04]} Bxc4 {[%emt 0:01:12]} 32. Nxc4 {[%emt 0:00:09]} b5 {[%emt 0:01:09]} 33. Nxe5 {[%emt 0:05:37]} bxa4 {[%emt 0:00:10]} 34. Nxa4 {[%emt 0:01:03]} Nxa4 {[%emt 0:00:38]} 35. bxa4 {[%emt 0:00:04]} Rb2 {[%emt 0:00:37]} 36. c3 {[%emt 0:04:17]} Rb3 {[%emt 0:00:32]} 37. g3 {[%emt 0:01:53]} Ne6 {[%emt 0:00:25]} 38. Rd7 {[%emt 0:00:03]} Rxc3 {[%emt 0:00:40]} 39. Rxc7 {[%emt 0:00:05]} Nxc7 {[%emt 0:00:05]} 40. Rd7 {[%emt 0:00:00]} Ne6 {[%emt 0:00:00]} 41. Rxf7+ {[%emt 0:00:11]} Kg8 {[%emt 0:00:49]} 42. Ra7 {[%emt 0:08:22]} Nd4 {[%emt 0:07:02]} 43. Rxa5 {[%emt 0:01:16]} c5 {[%emt 0:00:57]} 44. Ra7 {[%emt 0:03:44]} Rc2+ {[%emt 0:00:46]} 45. Ke3 {[%emt 0:01:49]} Rc3+ {[%emt 0:04:34]} 46. Kf4 {[%emt 0:02:30]} Ne6+ {[%emt 0:00:14]} 47. Kg4 {[%emt 0:00:06]} h5+ {[%emt 0:03:22]} 48. Kh3 {[%emt 0:00:04]} Nd4 {[%emt 0:00:02]} 49. Nxg6 {[%emt 0:00:45]} Nxf3 {[%emt 0:03:38]} 50. Nf4 {[%emt 0:00:31]} Nd2 {[%emt 0:02:34]} 51. e5 {[%emt 0:01:59]} Ne4 {[%emt 0:02:21]} 52. Nxh5 {[%emt 0:00:14]} Nf2+ {[%emt 0:00:30]} 53. Kg2 {[%emt 0:00:16]} Rc2 {[%emt 0:02:50]} 54. e6 {[%emt 0:00:35]} Ne4+ {[%emt 0:01:07]} 55. Kf3 {[%emt 0:00:39]} Nd6 {[%emt 0:00:21]} 56. Nf6+ {[%emt 0:00:15]} Kf8 {[%emt 0:00:09]} 57. e7+ {[%emt 0:00:11]} Kf7 {[%emt 0:00:17]} 58. e8=Q+ {[%emt 0:00:05]} Kxf6 {[%emt 0:00:11]} 59. Qe7+ {[%emt 0:00:03]} Kf5 {[%emt 0:00:08]} 60. Qg5+ {[%emt 0:00:25]} Ke6 {[%emt 0:00:04]} 61. Re7# {[%emt 0:00:04]} 1-0

[Event "Mitropa Online Cup Women 2021"]
[Site "Hybrid"]
[Date "2021.05.04"]
[Round "5.4"]
[White "Novkovic, Julia"]
[Black "Olsarova, Karolina"]
[Result "1/2-1/2"]
[ECO "C47"]
[WhiteElo "2170"]
[BlackElo "2290"]
[Annotator "NA"]
[PlyCount "75"]
[EventDate "2021.05.04"]
[EventType "team-tourn"]
[EventCountry "NET"]
[SourceTitle "playchess.com"]
[Source "ChessBase"]
[SourceQuality "1"]
[WhiteTeam "Austria"]
[BlackTeam "Czech Republic"]
[WhiteTeamCountry "AUT"]
[BlackTeamCountry "CZE"]
[TimeControl "40/5400+30:1800+30"]

1. e4 {[%emt 0:00:00]} e5 {[%emt 0:00:04]} 2. Nf3 {[%emt 0:00:05]} Nc6 {[%emt 0:00:05]} 3. Nc3 {[%emt 0:00:08]} Nf6 {[%emt 0:00:06]} 4. d4 {[%emt 0:00:05]} Bb4 {[%emt 0:00:17]} 5. Nxe5 {[%emt 0:07:38]} Qe7 {[%emt 0:00:56]} 6. Nxc6 {[%emt 0:18:07]} Qxe4+ {[%emt 0:00:32]} 7. Qe2 {[%emt 0:01:17]} Bxc3+ {[%emt 0:02:41]} 8. bxc3 {[%emt 0:00:13]} dxc6 {[%emt 0:00:20]} 9. f3 {[%emt 0:17:05]} Qxe2+ {[%emt 0:07:47]} 10. Bxe2 {[%emt 0:00:07]} Be6 {[%emt 0:00:11]} 11. O-O {[%emt 0:08:27]} Nd5 {[%emt 0:03:33]} 12. c4 {[%emt 0:01:27]} Nb6 {[%emt 0:03:00]} 13. c5 {[%emt 0:01:50]} Nd5 {[%emt 0:03:42]} 14. Bd2 {[%emt 0:04:58]} O-O-O {[%emt 0:10:34]} 15. c3 {[%emt 0:04:59]} Bf5 {[%emt 0:13:36]} 16. Rfe1 {[%emt 0:02:25]} h5 {[%emt 0:05:04]} 17. g3 {[%emt 0:01:19]} Rd7 {[%emt 0:15:03]} 18. Bf1 {[%emt 0:00:33]} Re7 {[%emt 0:08:08]} 19. Rxe7 {[%emt 0:03:55]} Nxe7 {[%emt 0:00:06]} 20. Re1 {[%emt 0:01:08]} Be6 {[%emt 0:00:23]} 21. a3 {[%emt 0:00:51]} Kd7 {[%emt 0:00:18]} 22. Bg5 {[%emt 0:02:43]} f6 {[%emt 0:03:27]} 23. Bc1 {[%emt 0:00:06]} Nd5 {[%emt 0:05:34]} 24. Bb2 {[%emt 0:02:34]} Bf5 {[%emt 0:04:38]} 25. Kf2 {[%emt 0:03:14]} Rb8 {[%emt 0:00:17]} 26. c4 {[%emt 0:02:34]} Ne7 {[%emt 0:00:21]} 27. Re3 {[%emt 0:03:12]} Rd8 {[%emt 0:01:42]} 28. Re1 {[%emt 0:04:46]} Ke8 {[%emt 0:01:08]} 29. h3 {[%emt 0:00:11]} Kf7 {[%emt 0:00:56]} 30. g4 {[%emt 0:00:42]} Be6 {[%emt 0:02:44]} 31. Kg3 {[%emt 0:01:35]} g5 {[%emt 0:03:00]} 32. Bd3 {[%emt 0:03:40]} Rh8 {[%emt 0:01:26]} 33. Bc3 {[%emt 0:00:40]} hxg4 {[%emt 0:02:39]} 34. hxg4 {[%emt 0:00:25]} Bc8 {[%emt 0:01:05]} 35. Be4 {[%emt 0:00:44]} Be6 {[%emt 0:00:11]} 36. Bd3 {[%emt 0:00:21]} Bc8 {[%emt 0:00:21]} 37. Be4 {[%emt 0:00:39]} Be6 {[%emt 0:00:19]} 38. Bd3 {[%emt 0:01:54]} 1/2-1/2

[Event "Mitropa Online Cup Women 2021"]
[Site "Hybrid"]
[Date "2021.05.04"]
[Round "5.4"]
[White "Hapala, Elisabeth"]
[Black "Richterova, Natasa"]
[Result "0-1"]
[ECO "B12"]
[WhiteElo "2120"]
[BlackElo "2188"]
[Annotator "NA"]
[PlyCount "124"]
[EventDate "2021.05.04"]
[EventType "team-tourn"]
[EventCountry "NET"]
[SourceTitle "playchess.com"]
[Source "ChessBase"]
[SourceQuality "1"]
[WhiteTeam "Austria"]
[BlackTeam "Czech Republic"]
[WhiteTeamCountry "AUT"]
[BlackTeamCountry "CZE"]
[TimeControl "40/5400+30:1800+30"]

1. e4 {[%emt 0:00:00]} c6 {[%emt 0:00:20]} 2. d4 {[%emt 0:00:05]} d5 {[%emt 0:00:07]} 3. e5 {[%emt 0:00:03]} Bf5 {[%emt 0:00:07]} 4. h4 {[%emt 0:00:05]} h5 {[%emt 0:04:21]} 5. c4 {[%emt 0:00:08]} dxc4 {[%emt 0:01:21]} 6. Bxc4 {[%emt 0:03:18]} e6 {[%emt 0:00:45]} 7. Nc3 {[%emt 0:02:17]} Nd7 {[%emt 0:03:42]} 8. Nge2 {[%emt 0:01:44]} Be7 {[%emt 0:16:42]} 9. Ng3 {[%emt 0:04:36]} Bg6 {[%emt 0:07:43]} 10. Nge4 {[%emt 0:04:24]} Nb6 {[%emt 0:05:31]} 11. Bb3 {[%emt 0:01:55]} Nd5 {[%emt 0:02:27]} 12. Nxd5 {[%emt 0:11:48]} cxd5 {[%emt 0:11:32]} 13. Ba4+ {[%emt 0:08:33]} Kf8 {[%emt 0:01:27]} 14. Ng5 {[%emt 0:00:41]} Qa5+ {[%emt 0:03:52]} 15. Bd2 {[%emt 0:11:49]} Bb4 {[%emt 0:03:05]} 16. Bb3 {[%emt 0:01:13]} Rc8 {[%emt 0:02:20]} 17. Bxb4+ {[%emt 0:04:55]} Qxb4+ {[%emt 0:03:41]} 18. Qd2 {[%emt 0:00:04]} Qxd2+ {[%emt 0:10:21]} 19. Kxd2 {[%emt 0:00:04]} Ke7 {[%emt 0:00:40]} 20. Rac1 {[%emt 0:20:43]} Nh6 {[%emt 0:00:09]} 21. Bc2 {[%emt 0:06:41]} Bxc2 {[%emt 0:03:12]} 22. Rxc2 {[%emt 0:00:04]} Rxc2+ {[%emt 0:01:02]} 23. Kxc2 {[%emt 0:00:04]} f6 {[%emt 0:01:12]} 24. Nf3 {[%emt 0:03:28]} Ng4 {[%emt 0:01:06]} 25. Rf1 {[%emt 0:02:49]} Rc8+ {[%emt 0:00:40]} 26. Kd3 {[%emt 0:00:14]} b5 {[%emt 0:04:35]} 27. exf6+ {[%emt 0:03:15]} gxf6 {[%emt 0:00:13]} 28. Nd2 {[%emt 0:00:56]} e5 {[%emt 0:00:34]} 29. f3 {[%emt 0:00:36]} Nh6 {[%emt 0:00:09]} 30. Nb3 {[%emt 0:01:52]} Nf5 {[%emt 0:00:41]} 31. dxe5 {[%emt 0:03:08]} fxe5 {[%emt 0:00:08]} 32. g4 {[%emt 0:00:23]} hxg4 {[%emt 0:00:29]} 33. fxg4 {[%emt 0:00:06]} Nxh4 {[%emt 0:05:34]} 34. Rh1 {[%emt 0:00:04]} Rh8 {[%emt 0:00:25]} 35. Rc1 {[%emt 0:00:42]} Kd6 {[%emt 0:00:17]} 36. Na5 {[%emt 0:02:53]} Rg8 {[%emt 0:01:46]} 37. Rc6+ {[%emt 0:01:11]} Kd7 {[%emt 0:00:05]} 38. Rc5 {[%emt 0:00:19]} Ke6 {[%emt 0:05:06]} 39. Rc6+ {[%emt 0:00:39]} Kd7 {[%emt 0:01:21]} 40. Rc5 {[%emt 0:00:00]} e4+ {[%emt 0:00:00]} 41. Kc3 {[%emt 0:19:19]} Kd6 {[%emt 0:02:37]} 42. Rxb5 {[%emt 0:00:40]} Rxg4 {[%emt 0:01:13]} 43. Rb8 {[%emt 0:03:04]} Rg3+ {[%emt 0:00:48]} 44. Kc2 {[%emt 0:00:16]} Nf5 {[%emt 0:02:21]} 45. Rd8+ {[%emt 0:02:35]} Kc7 {[%emt 0:05:43]} 46. Re8 {[%emt 0:00:24]} Nd4+ {[%emt 0:00:57]} 47. Kd2 {[%emt 0:01:57]} Rd3+ {[%emt 0:00:18]} 48. Ke1 {[%emt 0:00:35]} Kb6 {[%emt 0:00:16]} 49. Nb3 {[%emt 0:06:12]} Nxb3 {[%emt 0:00:06]} 50. axb3 {[%emt 0:00:01]} Kc5 {[%emt 0:00:16]} 51. Rb8 {[%emt 0:01:22]} a5 {[%emt 0:00:38]} 52. Ra8 {[%emt 0:01:04]} Rxb3 {[%emt 0:00:34]} 53. Rxa5+ {[%emt 0:00:02]} Kd4 {[%emt 0:00:14]} 54. Ra2 {[%emt 0:00:58]} Kd3 {[%emt 0:00:10]} 55. Kd1 {[%emt 0:00:14]} e3 {[%emt 0:00:39]} 56. Ke1 {[%emt 0:00:16]} d4 {[%emt 0:00:50]} 57. Kd1 {[%emt 0:00:06]} Ke4 {[%emt 0:03:03]} 58. Ke1 {[%emt 0:00:44]} Kf3 {[%emt 0:00:19]} 59. Ra4 {[%emt 0:01:07]} Rxb2 {[%emt 0:00:42]} 60. Rxd4 {[%emt 0:00:03]} Rb1+ {[%emt 0:00:09]} 61. Rd1 {[%emt 0:00:03]} Rxd1+ {[%emt 0:00:04]} 62. Kxd1 {[%emt 0:00:02]} Kf2 {[%emt 0:00:03]} 0-1